Cogmind - Beta 15 @@@ ROGUE MODE // 2025.05.12 @ 05:50:34 Player: Player Result: Destroyed by S-43 Plague with Heavy Machine Gun Performance ------------- Evolutions (9) 4500 Regions Visited (9) 1800 Robots Destroyed (70) 350 Value Destroyed (2407) 2407 Prototype IDs (13) 260 Alien Tech Used (0) 0 Bonus (1059) 1059 TOTAL SCORE: 10376 Bonus ------- High Alert Combat Kills 29 Follower Combat Kills 247 Registered with UFD 300 Met Optimus in HQ 500 Friendly Fire -17 Cogmind --------- Core Integrity 0/1600 Matter 178/300 Energy 99/100 System Corruption 3% Temperature Cool (0) Movement Core (50) Location -1/Access Parts ------- > --- POWER (1) -------- (None) > --- PROPULSION (8) --- (None) > --- UTILITY (13) ----- Enhanced Optical Array > --- WEAPON (3) ------- (None) > --- INVENTORY (5) ---- Quantum Reactor Advanced Energy Well Compact Matter Pod (150) Improved Cloaking Device Hardcell Cannon Peak State ------------ > --- POWER ------------ Light Nuclear Core > --- PROPULSION ------- Field Propulsion Array Flightbrick > --- UTILITY ---------- Advanced Power Amplifier Large Storage Unit Machine Analyzer Enhanced Optical Array Improved Signal Interpreter Advanced Terrain Scanner Targeting Computer Melee Analysis Suite Advanced Melee Analysis Suite Advanced Transmission Jammer Graphene Brace Hacking Suite Improved System Shield > --- WEAPON ----------- Power Sword Falx > --- INVENTORY -------- Light Nuclear Core Centrium Wheel Centrium Wheel VTOL Module Field Propulsion Drive Field Propulsion Array Field Propulsion Array Compact Matter Pod Improved Target Analyzer Phase Shifter Improved Cloaking Device Improved Focal Shield Improved Thermal Shield [Rating: 126] Favorites ----------- Power Ion Engine Engine Ion Engine Power Core Neutrino Core Propulsion Light Treads Treads Light Treads Leg Carbon-fiber Leg Wheel Wheel Flight Unit Field Propulsion Array Utility Large Storage Unit Device V3-11A's Pendant Storage Large Storage Unit Processor Improved Signal Interpreter Hackware Improved System Shield Protection Improved Medium Armor Plating Weapon Gauss Rifle Energy Gun EM Pulse Gun Energy Cannon Subdweller Beam Cannon Ballistic Gun Gauss Rifle Ballistic Cannon Battle Cannon Launcher Subdweller Shrapnel Launcher Special Weapon Mining Laser Impact Weapon Makeshift Hammer Slashing Weapon Power Sword Build | -11 -10 -10 -9 -6 -5 -4 -3 -2 -1 ------- Run | Yrd Mat Sub Scr Fac Fac Fac Res Res Acc Slots Evolved 18 | . . . . 8 2 2 2 2 2 Power . | . . . . . . . . . . Propulsion 6 | . . . . 3 1 . . 2 . Utility 11 | . . . . 4 1 2 2 . 2 Weapon 1 | . . . . 1 . . . . . Parts Attached 98 | 7 3 6 9 11 33 10 8 8 3 Power 14 | 1 . 1 3 2 4 2 1 . . Engine 9 | 1 . 1 3 2 1 . 1 . . Core 5 | . . . . . 3 2 . . . Reactor . | . . . . . . . . . . Propulsion 28 | 2 1 . 5 2 10 2 2 3 1 Treads 9 | 2 . . 3 2 2 . . . . Leg 4 | . . . . . 4 . . . . Wheel 4 | . 1 . 2 . 1 . . . . Hover . | . . . . . . . . . . Flight 11 | . . . . . 3 2 2 3 1 Utility 36 | 2 1 1 . 5 11 5 5 5 1 Device 18 | 1 . 1 . 1 6 1 3 4 1 Storage 5 | 1 1 . . . 2 . 1 . . Processor 8 | . . . . 4 1 2 1 . . Hackware 3 | . . . . . . 2 . 1 . Protection 2 | . . . . . 2 . . . . Artifact . | . . . . . . . . . . Weapon 20 | 2 1 4 1 2 8 1 . . 1 Energy Gun 2 | 1 . . . . 1 . . . . Energy Cannon 1 | . . 1 . . . . . . . Ballistic Gun 5 | 1 . . 1 1 2 . . . . Ballistic Cannon 6 | . . 2 . 1 2 . . . 1 Launcher 1 | . . . . . 1 . . . . Special Weapon 1 | . 1 . . . . . . . . Impact Weapon 1 | . . 1 . . . . . . . Slashing Weapon 3 | . . . . . 2 1 . . . Piercing Weapon . | . . . . . . . . . . Special Melee Weapon . | . . . . . . . . . . Unidentified Prototypes 2 | . . 1 . . 1 . . . . Parts Lost 46 | . . . . 3 16 . 10 9 8 Power 3 | . . . . 1 . . 2 . . Propulsion 18 | . . . . 1 9 . 3 3 2 Utility 20 | . . . . 1 3 . 4 6 6 Weapon 5 | . . . . . 4 . 1 . . Highest Loss Streak 8 | . . . . 3 4 . 8 6 7 To Critical Strikes . | . . . . . . . . . . Average Backups 12 | 3 11 14 12 9 13 14 12 3 5 Power . | 1 1 . . . . 1 . . . Propulsion 2 | . 1 3 3 2 . 2 4 . . Utility 5 | 1 2 3 6 4 9 9 6 3 3 Weapon 3 | 1 5 7 3 2 2 1 . . . Tool/Special . | . . . . . . . . . . Unused Backups 56 | . 2 13 8 3 11 5 8 . 6 Power 6 | . 2 1 1 . . . 1 . 1 Propulsion 9 | . . 1 . . . 2 5 . 1 Utility 27 | . . 3 5 1 9 3 2 . 4 Weapon 14 | . . 8 2 2 2 . . . . Tool/Special . | . . . . . . . . . . Average Slot Usage (%) 88 | . 96 100 99 97 80 66 70 33 18 Engine 8 | . 14 14 14 5 . . . . . Core 1 | . . . . . 3 3 3 . . Treads 11 | . 23 14 14 25 8 . . . . Leg 1 | . . . . . 8 . . . . Wheel 8 | . 4 14 13 6 2 . . . . Flight 1 | . . . . . . 11 8 4 2 Device 11 | . 14 14 14 10 4 7 14 8 4 Storage 9 | . 14 14 14 6 5 4 3 . . Processor 9 | . . . . 20 22 26 25 17 9 Energy Gun 3 | . 10 10 . . 1 . . . . Energy Cannon 2 | . . 7 . . . . . . . Ballistic Gun 5 | . 12 1 11 6 5 . . . . Ballistic Cannon 2 | . . 3 2 5 3 . . . . Impact Weapon 4 | . . 2 14 6 1 . . . . Slashing Weapon 1 | . . . . . 2 5 6 . . Peak Build Rating 126 | 7 8 17 31 48 75 106 126 64 56 Average Rating 35 | 5 7 12 19 44 52 94 110 44 27 On Entrance 34 | . 7 8 17 22 33 66 106 47 37 Naked Turns . | . . . . . . . . . . Heaviest Build 133 | 14 29 37 35 50 133 34 39 6 5 Greatest Support 91 | 40 40 10 40 91 66 39 45 23 15 Greatest Overweight (x) 16 | . 2 3 3 4 16 1 . 1 . Average Overweight (x) 1 | . . 2 2 . 4 . . . . Largest Inventory Capacity 25 | 8 15 15 15 15 25 15 15 5 5 Average Capacity 15 | 7 13 15 15 15 19 15 14 5 5 Most Carried 25 | 7 15 15 15 15 25 15 15 5 5 Average Carried 14 | 3 11 14 14 14 17 14 13 3 4 Final Capacity 15 | 8 15 15 15 15 15 15 5 5 5 Final Carried 15 | 7 15 15 15 14 15 15 5 5 5 Class Distribution -------------------- 70% | Mutant 8% | Scavenger-Mutant 8% | Derelict-Assassin 7% | Hacker-Gladiator Dominant Class ---------------- Mutant | -10/Materials Mutant | -10/Subcaves Mutant | -9/Scraptown Derelict-Assassin | -6/Factory Scavenger-Mutant | -5/Factory Hacker-Mutant | -4/Factory Hacker-Gladiator | -3/Research Mutant | -2/Research Mutant | -1/Access Resources | -11 -10 -10 -9 -6 -5 -4 -3 -2 -1 ----------- Run | Yrd Mat Sub Scr Fac Fac Fac Res Res Acc Matter Collected 2462 | 283 64 80 90 451 995 261 238 . . Remotely . | . . . . . . . . . . Salvage Created 2280 | 157 188 . . 126 1266 283 260 . . Parts 128 | 12 9 . . 8 71 18 10 . . Haulers Intercepted . | . . . . . . . . . . Recyclers Shooed 4 | . 1 . . . 3 . . . . Parts Field Recycled . | . . . . . . . . . . Retrieved Matter . | . . . . . . . . . . Parts Self-Destructed 24 | . . 24 . . . . . . . Prevented . | . . . . . . . . . . Kills | -11 -10 -10 -9 -6 -5 -4 -3 -2 -1 ------- Run | Yrd Mat Sub Scr Fac Fac Fac Res Res Acc Combat Hostiles Destroyed 47 | . 3 . . 4 30 6 4 . . Melee 11 | . . . . . 1 6 4 . . Guns 14 | . 1 . . 4 9 . . . . Cannons 7 | . . . . . 7 . . . . AOE 15 | . 2 . . . 13 . . . . Classes Destroyed 10 | 2 3 . . 2 2 1 . . . Worker 5 | . 1 . . 1 2 1 . . . Builder 2 | . . . . . 2 . . . . Tunneler 7 | 5 1 . . . 1 . . . . Recycler 2 | 1 . . . . 1 . . . . Operator 2 | . . . . . . 1 1 . . Watcher 5 | . 1 . . . . 3 1 . . Swarmer 25 | . . . . 3 13 6 3 . . Grunt 11 | . 3 . . . 7 . 1 . . Sentry 2 | . . . . . 2 . . . . Programmer 9 | . . . . 1 8 . . . . Best Kill Streak 7 | 3 2 . . 3 7 4 4 . . Combat Bots Only 7 | . 2 . . 3 7 3 3 . . Max Kills in Single Turn 3 | 1 2 . . 1 3 1 1 . . Gunslinging . | . . . . . . . . . . Exploded 3 | . 1 . . . 3 . . . . Melee 1 | . . . . . 1 1 1 . . Uniques/NPCs Destroyed . | . . . . . . . . . . Combat | -11 -10 -10 -9 -6 -5 -4 -3 -2 -1 -------- Run | Yrd Mat Sub Scr Fac Fac Fac Res Res Acc Hostile Shots Fired 829 | . 14 5 . 89 231 77 185 67 161 Missed 317 | . 6 3 . 19 64 39 85 29 72 Hits 512 | . 8 2 . 70 167 38 100 38 89 Melee 1 | . . . . 1 . . . . . Projectile 511 | . 8 2 . 69 167 38 100 38 89 Critical Strikes 20 | . . . . 1 10 . 6 1 2 Actively Blocked 7 | . . . . . . . 6 1 . Damage Taken 10311 | 32 87 95 . 1021 3254 596 2267 902 2057 Core 3250 | 16 . . . 255 426 97 438 412 1606 Absorbed by Shields 62 | . . . . . . . 62 . . Ignored by Resistances 133 | . . . . . 116 . . 17 . Regen/Repaired (Parts) 50 | . 50 . . . . . . . . Core Remaining (%) 77 | 93 . . 93 70 57 91 66 71 . Volleys Fired 124 | 13 16 16 . 18 60 . . . 1 Largest 2 | 2 2 1 . 2 2 . . . 1 Hottest 100 | 60 100 100 . 72 97 . . . 55 Shots Fired 194 | 26 29 16 . 28 94 . . . 1 Gun 128 | 26 27 . . 11 64 . . . . Cannon 45 | . . 10 . 17 17 . . . 1 Launcher 13 | . . . . . 13 . . . . Special 8 | . 2 6 . . . . . . . Kinetic 137 | 13 14 . . 28 81 . . . 1 Thermal 31 | . 2 16 . . 13 . . . . Explosive . | . . . . . . . . . . Electromagnetic 26 | 13 13 . . . . . . . . Robot Hit Streak 16 | 7 8 . . 9 16 . . . . Robot Miss Streak 3 | 1 3 . . 2 2 . . . . Penetration Max 1 | . . . . 1 1 . . . . Secondary Targets 1 | . . . . . 1 . . . . Max Gunslinging Chain 1 | . . . . . 1 . . . . Shots Hit Robots 150 | 17 16 . . 15 73 17 12 . . Core Hits 104 | 8 10 . . 6 61 11 7 . 1 Critical Kills 5 | . . . . . 5 . . . . Critical Parts Destroyed 3 | . . . . 1 2 . . . . Critical Strikes 13 | 1 . . . 1 9 2 . . . Destroy 8 | . . . . 1 7 . . . . Corrupt 1 | 1 . . . . . . . . . Sever 4 | . . . . . 2 2 . . . Melee Attacks 142 | . . 6 . 5 22 50 59 . . Impact 12 | . . 6 . 5 1 . . . . Slashing 130 | . . . . . 21 50 59 . . Piercing . | . . . . . . . . . . Sneak Attacks 5 | . . . . 1 2 2 . . . Combat Hostiles . | . . . . . . . . . . Follow-up Attacks 2 | . . . . . . . 2 . . Damage Inflicted 6322 | 215 423 . . 478 3592 929 585 . 100 Guns 1872 | 182 244 . . 223 1223 . . . . Cannons 457 | . . . . 157 300 . . . . Explosions 1990 | 33 179 . . . 1678 . . . 100 Melee 2003 | . . . . 98 391 929 585 . . Ramming . | . . . . . . . . . . Kinetic 3178 | 50 78 . . 380 2670 . . . . Thermal 828 | 33 179 . . . 516 . . . 100 Explosive . | . . . . . . . . . . Electromagnetic 313 | 132 166 . . . 15 . . . . Impact 194 | . . . . 98 96 . . . . Slashing 1809 | . . . . . 295 929 585 . . Piercing . | . . . . . . . . . . Highest Corruption 14 | . . . . 3 7 . 14 . 3 Average Corruption 4 | . . . . 1 4 . 8 . 3 Corruption Purged 3 | . . . . . 3 . . . . Corruption Blocked . | . . . . . . . . . . Effects 46 | . . . . 1 37 . 7 . 1 Message Errors 10 | . . . . . 8 . 1 . 1 Matter Fused 12 | . . . . . 10 . 2 . . Heat Flow Errors 4 | . . . . . 4 . . . . Energy Discharges 5 | . . . . . 4 . 1 . . Data Loss (minor) 6 | . . . . . 6 . . . . Data Loss (major) 5 | . . . . . 4 . 1 . . Misfires 1 | . . . . . 1 . . . . Misdirections 2 | . . . . . . . 2 . . Weapon Failures 1 | . . . . 1 . . . . . Overload Shots . | . . . . . . . . . . Overflow Damage 320 | . . . . 58 214 8 40 . . Projectiles . | . . . . . . . . . . Explosions 120 | . . . . . 120 . . . . Melee 200 | . . . . 58 94 8 40 . . Knockbacks 6 | . . . . 3 3 . . . . Impact 2 | . . . . 1 1 . . . . Kinetic 4 | . . . . 2 2 . . . . Secondary . | . . . . . . . . . . Self-Inflicted Damage 122 | 32 . . . . 19 . . . 71 Shots 3 | 1 . . . . 1 . . . 1 Rammed . | . . . . . . . . . . Targets Rammed . | . . . . . . . . . . Kicked . | . . . . . . . . . . Crushed . | . . . . . . . . . . Highest Temperature 356 | 40 58 . . . 356 . . . . Average Temperature 70 | 19 24 . . . 102 . . . . Received Heat Transfer 1397 | . 48 6 . 21 863 51 183 72 153 Effects 1 | . . . . . 1 . . . . Energy Bleed 1 | . . . . . 1 . . . . Siege Activations . | . . . . . . . . . . Martial Activations . | . . . . . . . . . . Shielding Activations . | . . . . . . . . . . Robots Disrupted . | . . . . . . . . . . Combat Hostiles . | . . . . . . . . . . Robots Corrupted 2 | . . . . 1 1 . . . . Combat Hostiles . | . . . . . . . . . . Parts Fried 2 | . 1 . . . 1 . . . . Impact Corruptions 4 | . . . . 2 2 . . . . Robots Melted . | . . . . . . . . . . Combat Hostiles . | . . . . . . . . . . Parts Melted . | . . . . . . . . . . Heat Transferred 870 | 50 200 . . . 570 . . . 50 Parts Sabotaged 4 | . . . . 4 . . . . . Parts Stolen . | . . . . . . . . . . Parts Stripped . | . . . . . . . . . . Power Chain Reactions 3 | 1 2 . . . . . . . . Alert | -11 -10 -10 -9 -6 -5 -4 -3 -2 -1 ------- Run | Yrd Mat Sub Scr Fac Fac Fac Res Res Acc Maximum Alert Level 2 | . . . . . 2 1 1 . 1 Low Security (%) 69 | 100 100 . . 100 54 . 77 100 88 Level 1 25 | . . . . . 32 100 22 . 11 Level 2 4 | . . . . . 12 . . . . Level 3 . | . . . . . . . . . . Level 4 . | . . . . . . . . . . Level 5 . | . . . . . . . . . . High Security . | . . . . . . . . . . Max Security . | . . . . . . . . . . Peak Influence 535 | 10 34 . . 63 535 371 305 165 215 Initial 238 | . . . . . . 238 177 165 72 Average 128 | 1 6 . . 11 178 277 158 122 92 Influence Increases 2966 | 30 88 185 . 228 1073 331 551 135 345 Destroy 0b10 Robot/C 1120 | . 60 80 . 160 620 120 80 . . Destroy 0b10 Robot/NC 115 | 30 15 . . 5 30 25 10 . . Destroy Leader 170 | . 2 . . 30 110 16 12 . . Allied During Kill 71 | . . 45 . 23 3 . . . . Successful Hack 3 | . 3 . . . . . . . . Disable Machine 120 | . . . . . 90 . 15 . 15 Destroy Structure 407 | . 8 . . 10 190 50 74 . 75 Partial Spotted 105 | . . . . . . . 75 15 15 Lose Combat Pursuer 855 | . . 60 . . 30 120 285 120 240 Influence Decreases 2766 | 30 81 175 17 228 585 480 596 309 265 Entered New Map 610 | . . 4 17 . . 250 162 129 48 Time Decay 1563 | 30 81 71 . 162 425 230 334 90 140 Lost Part 428 | . . . . 21 140 . 100 90 77 Lost Ally 165 | . . 100 . 45 20 . . . . Squads Dispatched 25 | . . . . 2 10 4 5 . 4 Investigation 2 | . . . . . . . 1 . 1 Extermination 12 | . . . . 2 3 2 4 . 1 Reinforcement 8 | . . . . . 4 2 . . 2 Assault . | . . . . . . . . . . Garrison 3 | . . . . . 3 . . . . Intercept . | . . . . . . . . . . Searches Triggered . | . . . . . . . . . . Construction Impeded 1 | . . . . . 1 . . . . Haulers Reinforced 1 | . . . . . 1 . . . . Active Scanning Responses . | . . . . . . . . . . Cargo Convoy Interrupts 1 | . . . . 1 . . . . . Stealth | -11 -10 -10 -9 -6 -5 -4 -3 -2 -1 --------- Run | Yrd Mat Sub Scr Fac Fac Fac Res Res Acc Distress Signals 5 | . 2 . . . 1 1 1 . . Communications Jammed 13 | . . . . . . . 13 . . Distress Signals 13 | . . . . . . . 13 . . Times Spotted 203 | . 11 14 . 21 44 27 38 15 33 Peak Tracking Total 14 | . 4 3 . 11 7 9 14 9 13 Tactical Retreats 22 | . . 2 . . 1 4 8 3 4 Traps | -11 -10 -10 -9 -6 -5 -4 -3 -2 -1 ------- Run | Yrd Mat Sub Scr Fac Fac Fac Res Res Acc Traps Triggered 10 | . . 1 . . 3 . 3 2 1 Indirectly . | . . . . . . . . . . Trap Hack Attempts . | . . . . . . . . . . Triggered . | . . . . . . . . . . Disarmed . | . . . . . . . . . . Reprogrammed . | . . . . . . . . . . Reused . | . . . . . . . . . . Traps Extracted . | . . . . . . . . . . Installed . | . . . . . . . . . . Triggered . | . . . . . . . . . . Machines | -11 -10 -10 -9 -6 -5 -4 -3 -2 -1 ---------- Run | Yrd Mat Sub Scr Fac Fac Fac Res Res Acc Machines Disabled 10 | . . 2 . . 6 . 1 . 1 Max in Single Turn 4 | . . 1 . . 4 . 1 . 1 Energy Cycler 1 | . . . . . . . . . 1 Machines Repaired . | . . . . . . . . . . Machines Dismantled . | . . . . . . . . . . Machines Sabotaged . | . . . . . . . . . . Overloaded Fab Kills . | . . . . . . . . . . Hacking | -11 -10 -10 -9 -6 -5 -4 -3 -2 -1 --------- Run | Yrd Mat Sub Scr Fac Fac Fac Res Res Acc Machines Accessed 9 | . 2 2 . . 1 1 3 . . Terminals 4 | . . . . . 1 1 2 . . Fabricators . | . . . . . . . . . . Repair Stations 1 | . 1 . . . . . . . . Recycling Units 2 | . 1 . . . . . 1 . . Scanalyzers . | . . . . . . . . . . Garrison Access . | . . . . . . . . . . Total Hacks 16 | . 5 3 . . 1 3 4 . . Successful 9 | . 5 3 . . . . 1 . . Failed 7 | . . . . . 1 3 3 . . Catastrophic 1 | . . . . . . . 1 . . Database Lockouts . | . . . . . . . . . . Manual 9 | . 1 . . . 1 3 4 . . Terminals 7 | . . . . . 1 3 3 . . Fabricators . | . . . . . . . . . . Repair Stations 4 | . 4 . . . . . . . . Recycling Units 2 | . 1 . . . . . 1 . . Scanalyzers . | . . . . . . . . . . Garrison Access . | . . . . . . . . . . Terminal Hacks 3 | . . 3 . . . . . . . Record 2 | . . 2 . . . . . . . Proto ID Catalog 1 | . . 1 . . . . . . . Fabricator Hacks . | . . . . . . . . . . Repair Station Hacks 4 | . 4 . . . . . . . . Scan Component 2 | . 2 . . . . . . . . Repair 2 | . 2 . . . . . . . . Recycling Unit Hacks . | . . . . . . . . . . Scanalyzer . | . . . . . . . . . . Garrison Access Hacks . | . . . . . . . . . . Unauthorized Hacks 2 | . 1 . . . . . 1 . . Terminals . | . . . . . . . . . . Fabricators . | . . . . . . . . . . Repair Stations . | . . . . . . . . . . Recycling Units 2 | . 1 . . . . . 1 . . Reject 1 | . 1 . . . . . . . . Fedlink 1 | . . . . . . . 1 . . Scanalyzers . | . . . . . . . . . . Garrison Access . | . . . . . . . . . . Data Cores Recovered 1 | . . . . . . . 1 . . Used . | . . . . . . . . . . Hacking Detections 4 | . 1 . . . 1 . 2 . . Full Trace Events . | . . . . . . . . . . Feedback Events . | . . . . . . . . . . Feedback Blocked . | . . . . . . . . . . Robot Schematics Acquired . | . . . . . . . . . . Robots Built . | . . . . . . . . . . Authchips . | . . . . . . . . . . Time . | . . . . . . . . . . Total Robot Build Rating . | . . . . . . . . . . Part Schematics Acquired . | . . . . . . . . . . Parts Built . | . . . . . . . . . . Authchips . | . . . . . . . . . . Time . | . . . . . . . . . . Total Part Build Rating . | . . . . . . . . . . Parts Repaired 2 | . 2 . . . . . . . . Time 52 | . 52 . . . . . . . . Parts Recycled . | . . . . . . . . . . Recycled Matter . | . . . . . . . . . . Retrieved Matter . | . . . . . . . . . . Retrieved Components . | . . . . . . . . . . Parts Scanalyzed . | . . . . . . . . . . Part Schematics Acquired . | . . . . . . . . . . Parts Damaged . | . . . . . . . . . . Bothacking | -11 -10 -10 -9 -6 -5 -4 -3 -2 -1 ------------ Run | Yrd Mat Sub Scr Fac Fac Fac Res Res Acc Used RIF Installer . | . . . . . . . . . . Robots Hacked . | . . . . . . . . . . Non-combat . | . . . . . . . . . . Combat . | . . . . . . . . . . Robot Hacks Applied . | . . . . . . . . . . Relay Couplers Released . | . . . . . . . . . . Fabnet Peak Effective % . | . . . . . . . . . . Robots Rewired 1 | . . . . . 1 . . . . Allies Hacked . | . . . . . . . . . . Hacks Repelled . | . . . . . . . . . . Allies | -11 -10 -10 -9 -6 -5 -4 -3 -2 -1 -------- Run | Yrd Mat Sub Scr Fac Fac Fac Res Res Acc Total Allies 17 | . . 15 . . 2 . . . . Largest Group 12 | . . 12 6 6 1 . . . . Highest-Rated Group 231 | . . 231 117 117 43 . . . . Highest-Rated Ally 43 | . . 22 22 22 43 . . . . Total Orders . | . . . . . . . . . . Ally Attacks 84 | . . 44 . 31 9 . . . . Total Damage 1557 | . . 794 . 471 292 . . . . Kills 10 | . . 5 . 4 1 . . . . Allies Corrupted . | . . . . . . . . . . Allies Melted . | . . . . . . . . . . Intel | -11 -10 -10 -9 -6 -5 -4 -3 -2 -1 ------- Run | Yrd Mat Sub Scr Fac Fac Fac Res Res Acc Active Infowar (turns) 4605 | 67 374 50 . 830 1618 449 754 181 282 Optics 1666 | . . . . . . 449 754 181 282 Sensors 807 | . . . . 807 . . . . . Terrain 352 | . . . . . 259 29 64 . . Seismic 2097 | 67 374 50 . . 667 357 582 . . Machine Analysis 2444 | . . . . 826 1618 . . . . Jamming 105 | . . . . . . . 101 4 . ECM 8 | . . . . . . . . 5 3 Robot Analysis Total . | . . . . . . . . . . Derelict Logs Recovered 3 | . . 1 2 . . . . . . Drone Launches . | . . . . . . . . . . Drone Recoveries . | . . . . . . . . . . Exploration | -11 -10 -10 -9 -6 -5 -4 -3 -2 -1 ------------- Run | Yrd Mat Sub Scr Fac Fac Fac Res Res Acc Turns Passed 10034 | 181 374 2776 2452 843 1699 492 754 181 282 Spaces Moved 8364 | 82 215 2170 1859 451 726 698 1252 355 556 Core 623 | 3 . . . . 1 . 76 135 408 Treads 898 | 79 134 . 32 428 225 . . . . Legs 131 | . . . . . 131 . . . . Wheels 4386 | . 81 2170 1827 23 285 . . . . Hover . | . . . . . . . . . . Flight 2326 | . . . . . 84 698 1176 220 148 Fastest Speed 34 | 50 110 110 80 120 40 34 34 37 40 Average Speed 101 | 155 141 119 124 158 175 38 37 43 47 Slowest Speed 850 | 160 160 125 160 160 850 80 50 100 50 Overloaded Moves . | . . . . . . . . . . Propulsion Burnouts . | . . . . . . . . . . Robots Hopped 13 | . . 1 . . . 3 8 1 . Potential Cave-ins 2 | . . . . . . . . . 2 Cave-ins Triggered 1 | . . . . . . . . . 1 Exploration Rate (%) 34 | 6 28 93 88 6 23 29 47 10 16 Regions Visited 9 Branch Regions 2 Pre-discovered Areas 2 | . . . 2 . . . . . . Known Exits Taken 4 | . . . . 1 . 1 1 1 . Unknown Exits Taken 5 | 1 1 1 1 . 1 . . . . Scrap Searched 11 | . . 4 7 . . . . . . Spaces Dug 89 | . 2 1 . 10 12 25 39 . . Terrain Destroyed 212 | 1 8 3 . 14 96 25 39 . 26 Melee 80 | . . . . 4 12 25 39 . . Projectile 16 | . 2 3 . 10 1 . . . . AOE 116 | 1 6 . . . 83 . . . 26 Terrain Rammed . | . . . . . . . . . . Walls Destroyed . | . . . . . . . . . . Machines Disabled . | . . . . . . . . . . Actions | -11 -10 -10 -9 -6 -5 -4 -3 -2 -1 --------- Run | Yrd Mat Sub Scr Fac Fac Fac Res Res Acc Total 9478 | 109 255 2327 2004 549 1026 840 1420 374 574 Wait 493 | . 5 91 102 45 99 54 87 1 9 Move 8330 | 81 214 2167 1858 450 725 691 1237 352 555 Hop 11 | . . 1 . . . 3 6 1 . Pick Up 125 | 8 12 17 14 10 33 15 8 6 2 Fast Attach 51 | 6 . 1 3 2 22 5 2 8 2 Attach 51 | 1 2 2 2 9 15 7 6 6 1 Detach 11 | . . . 1 . 3 4 2 . 1 Swap 30 | . 3 5 6 3 10 1 2 . . Drop 100 | . 3 21 18 7 27 13 9 . 2 Fire 124 | 13 16 16 . 18 60 . . . 1 Melee 134 | . . 6 . 5 22 47 54 . . Ram . | . . . . . . . . . . Kick . | . . . . . . . . . . Crush . | . . . . . . . . . . Escape Stasis 16 | . . . . . 8 . 7 . 1 Rewire 2 | . . . . . 2 . . . . Trap . | . . . . . . . . . . Miscellaneous . | . . . . . . . . . . Route ------- -11/Scrapyard -10/Materials (discovered 2 exits: [*Mat] / *Sub) -10/Subcaves (discovered 4 exits: [*Mat x2] / *Rec / *Scr) -9/Scraptown (discovered 2 exits: *Fac x2) -6/Factory -5/Factory -4/Factory -3/Research (discovered 2 exits: *Res / *Arm) -2/Research -1/Access History --------- Turn | Location | Event 23 | -11/Scrapyard | Discovered new exit (range 16) 182 | -11/Scrapyard | Entered Materials 183 | -10/Materials | Met a group of wandering Federalists 257 | -10/Materials | Discovered new exit (range 12) 301 | -10/Materials | Lost 3 allies 302 | -10/Materials | Build established: Mutant 408 | -10/Materials | Repaired EM Pulse Gun 449 | -10/Materials | Repaired Lgt. Treads 503 | -10/Materials | Discovered new exit (range 7) 556 | -10/Materials | Entered Subcaves 557 | -10/Subcaves | Continued accompanying wandering Federalists (3) 557 | -10/Subcaves | Approached by a straggling Scientist 596 | -10/Subcaves | Visited triangular shrine 605 | -10/Subcaves | Found Prototype Device 607 | -10/Subcaves | Identified V3-11A's Pendant 612 | -10/Subcaves | Befriended Subdweller 729 | -10/Subcaves | Discovered new exit (range 15) 742 | -10/Subcaves | Befriended Subdweller 792 | -10/Subcaves | Befriended Subdweller 1042 | -10/Subcaves | Befriended Subdweller 1203 | -10/Subcaves | Visited Clippyterm 1206 | -10/Subcaves | Identified exit to Recycling 1456 | -10/Subcaves | A swath of the cavern ceiling suddenly collapsed 1572 | -10/Subcaves | Befriended Subdweller 1582 | -10/Subcaves | Befriended Subdweller 1582 | -10/Subcaves | Befriended Subdweller 1622 | -10/Subcaves | Learned location of 1 exit from Materials 1817 | -10/Subcaves | Befriended Subdweller 1847 | -10/Subcaves | Befriended Subdweller 1852 | -10/Subcaves | Befriended Subdweller 1942 | -10/Subcaves | Befriended Subdweller 1972 | -10/Subcaves | Befriended Subdweller 2013 | -10/Subcaves | A swath of the cavern ceiling suddenly collapsed 2197 | -10/Subcaves | Discovered new exit (range 16) 2246 | -10/Subcaves | A Subdweller sparked back to life 2246 | -10/Subcaves | A Subdweller sparked back to life 2246 | -10/Subcaves | A Subdweller sparked back to life 2247 | -10/Subcaves | Befriended Subdweller 2247 | -10/Subcaves | Befriended Subdweller 2247 | -10/Subcaves | Befriended Subdweller 2706 | -10/Subcaves | Lost 5 allies 2839 | -10/Subcaves | Shifting Twisted Machinery released Mak. Hammer 2846 | -10/Subcaves | Shifting Twisted Machinery released Sub. Laser 2923 | -10/Subcaves | Visited 4L-MR0's lab 2941 | -10/Subcaves | Found Tower Shield 3332 | -10/Subcaves | Entered Scraptown 3332 | -9/Scraptown | Accompanied by 6 allies 3492 | -9/Scraptown | Visited UFD Registry 3492 | -9/Scraptown | Registered with UFD as "Hardkit" 3594 | -9/Scraptown | Delivered Scrap Shield to a Scientist 3729 | -9/Scraptown | Visited Botcube Research 3737 | -9/Scraptown | Found Botcube 3775 | -9/Scraptown | Visited Supply Room 4210 | -9/Scraptown | Visited Bundlers 4236 | -9/Scraptown | Visited Comm Corps 4292 | -9/Scraptown | Visited Cyclists 4337 | -9/Scraptown | Visited Spacefarers 4366 | -9/Scraptown | Visited Awakened 4438 | -9/Scraptown | Scanned Subdweller tech in exchange for log data 4441 | -9/Scraptown | Learned Research security intel 4442 | -9/Scraptown | Learned location of Extension (-5) 4580 | -9/Scraptown | Discovered new exit (range 5) 5147 | -9/Scraptown | Visited Modified Component R&D 5308 | -9/Scraptown | Visited Scrapoid Pod Storage 5326 | -9/Scraptown | Visited Observation Area 5433 | -9/Scraptown | Discovered new exit (range 3) 5477 | -9/Scraptown | Visited DA-N13 Charitable Foundation 5488 | -9/Scraptown | Found DCF Scrap (29 items) 5559 | -9/Scraptown | Visited Supply Room 5575 | -9/Scraptown | Visited Curators Association 5613 | -9/Scraptown | Met Optimus 5613 | -9/Scraptown | Accepted into 0bPrime 5784 | -9/Scraptown | Entered Factory 5784 | -6/Factory | Accompanied by 6 allies 5784 | -6/Factory | Evolved 8 slots: Propulsion x3, Utility x4, Weapon x1 6091 | -6/Factory | Build established: Derelict-Assassin 6096 | -6/Factory | Found Flightbrick 6148 | -6/Factory | Lost 5 allies 6308 | -6/Factory | P-60 Hacker assimilated allied 2O-IA9(R) 6317 | -6/Factory | Befriended Subdweller 6425 | -6/Factory | Discovered new exit (range 15) 6445 | -6/Factory | Identified exit to Factory 6596 | -6/Factory | Cargo convoy interrupted 6627 | -6/Factory | Entered another Factory area 6627 | -5/Factory | Evolved 2 slots: Propulsion x1, Utility x1 6654 | -5/Factory | Lost 3 parts (1p1n1u) 6699 | -5/Factory | Lost 4 parts (2n2w) 7032 | -5/Factory | Build established: Scavenger-Mutant 7526 | -5/Factory | Garrison activated, responded to threat 7694 | -5/Factory | Destroyed 7 combat bots 7699 | -5/Factory | Lost 4 parts (3n1w) 8176 | -5/Factory | Build established: Mutant 8204 | -5/Factory | Spotted B-75 Beast 8245 | -5/Factory | Attached Flightbrick, gained temporary slots: Utility x3 8253 | -5/Factory | Botcube activated 8273 | -5/Factory | Lost 3 parts (2u1w) 8323 | -5/Factory | Discovered new exit (range 8) 8326 | -5/Factory | Entered another Factory area 8326 | -4/Factory | Evolved 2 slots: Utility x2 8602 | -4/Factory | Spotted B-86 Titan 8807 | -4/Factory | Discovered new exit (range 12) 8812 | -4/Factory | Identified exit to Research 8818 | -4/Factory | Entered Research 8818 | -3/Research | Evolved 2 slots: Utility x2 8852 | -3/Research | Loaded intel: 5 recycling unit locations 8974 | -3/Research | Build established: Hacker-Gladiator 9125 | -3/Research | Spotted B-86 Titan 9430 | -3/Research | System corruption reached 10% 9479 | -3/Research | Discovered new exit (range 8) 9484 | -3/Research | Identified exit to Armory 9493 | -3/Research | Lost 8 parts (2p2n3u1w) 9569 | -3/Research | Discovered new exit (range 8) 9572 | -3/Research | Identified exit to Research 9572 | -3/Research | Entered another Research area 9572 | -2/Research | Evolved 2 slots: Propulsion x2 9662 | -2/Research | Lost 3 parts (1n2u) 9731 | -2/Research | Build established: Mutant 9739 | -2/Research | Lost 6 parts (2n4u) 9751 | -2/Research | Discovered new exit (range 6) 9752 | -2/Research | Identified exit to Access 9753 | -2/Research | Entered Access 9753 | -1/Access | Evolved 2 slots: Utility x2 9885 | -1/Access | Energy Cycler disabled 9889 | -1/Access | Crushed by falling debris 9955 | -1/Access | Lost 7 parts (2n5u) 9971 | -1/Access | Core integrity fell below 50% 9992 | -1/Access | Spotted B-99 Colossus 10009 | -1/Access | Spotted B-99 Colossus 10015 | -1/Access | Core integrity fell below 20% 10035 | -1/Access | Destroyed by S-43 Plague with Heavy Machine Gun Last Messages --------------- 09971_ Penetrated by Slug. 09976_ Critical hit (Burn: +37). 09976_ K-01 Serf destroyed. 09976_ Penetrated by Slug. 10010_ Slug penetrates Wall. 10010_ Penetrated by Slug. 10010_ Slug penetrates Door. 10014_ Penetrated by Slug. 10014_ Slug penetrates Wall. 10017_ Imp. Signal Interpreter destroyed. 10017_ Penetrated by Slug. 10017_ Slug penetrates Wall. 10018_ O-32 Director: "IFF HANDSHAKE FAILED. SECURING TERMINAL." 10022_ O-32 Director uses terminal to summon reinforcements. 10022_ ALERT: Hostiles spotted, dispatching reinforcements to Terminal A018. 10022_ O-32 Director locks terminal. 10035_ Slug penetrates Wall. Map ----- +----------------------------------------------------+ | ?????????????????????????????????????????? | | ?????????????????????????????????????????? | | ?????????????????????????????????????????? | | ?????????????????????????????????????????? | | ?????????????????????????????????????????? | | ?????????????????????????????????????????? | | ?????????????????????????????????????????? | | ?????????????????????????????????????##### | | ?????????????????????????????????????# " | | ?????????????????????????????????????# "" | | ?????????????????????????????????????# "" | | ?????????????????????????????????????# | | ?????????????????????????????????????# | | ?????????????????????????????????????? | | ????######?????????????????????????????? | | ????# #?????????????????????????????? | | ????# #??###+###???#######????#######"# | | ????# ##?# ##### ###### | | ??????# ### "" " | | ??????# sT % " # % | | ??????# ###s # % | | ??????#####?# ##### # | | ????????????## ####### | | ?????????????#s # * # g | | ?????????????# # g | | ?????????????# @ # ^ | | ?????????????# s ; # | | ?????????????# # ! # | | ?????????????# # # | | ?????????????# # # !!! | | ?????????????# # # !!! | | ?????????????# #?##### !! | | ?????????????# #?????# | | ?????????????#s ????? | | ?????????????+ #????## | | ?????????????# H #?????## ##### | | ?????????????#k #??????# #???## | | ????????????? ??????# ###########????? | | ????????????? ??????# ???????????????? | | ????????????? ??????? ???????????????? | | ???????????? ???????????????????????? | | ????????????# ???????????????????????? | | ????????????### ##???????????????????????? | | ??????????????? ?????????????????????????? | | ??????????????? ?????????????????????????? | | ???????????????+?????????????????????????? | | ?????????????????????????????????????????? | | ?????????????????????????????????????????? | | ?????????????????????????????????????????? | | ?????????????????????????????????????????? | +----------------------------------------------------+ Best States ------------- Heat Dissipation 52 Energy Generation 21 Energy Capacity 315 Matter Stores 300 Matter Capacity 300 Sight Range 22 Robot Scan Range 14 Terrain Scan Range 20 Terrain Scan Density 85 ECM Strength 1 Jamming Range 16 Power Amplification 30 Armor Coverage 600 Resistance: KI 25 Resistance: TH 25 Phase Shifting 5 Evasion (%) 72 Targeting Accuracy 11 Melee Accuracy 13 Recoil Reduction 4 Matter Filtering 30 Offensive Hacking 10 Defensive Hacking 12 Item Schematics ----------------- None Robot Schematics ------------------ None Fabricated ------------ Nothing Repaired ---------- EM Pulse Gun | 40% | -10/Materials Lgt. Treads | 83% | -10/Materials Alien Tech Used ----------------- None Achievements -------------- Cya! Challenges ------------ None Game ------ Seed SupercompositeDynamicLance Manual? 0 Play Time 03:45:44 Cumulative 180.9 hours Start 2025.05.11 @ 17:25:42 End 2025.05.12 @ 05:50:34 Sessions 7 Manual Loads 0 Difficulty Rogue Special Mode None Game No. 113 Rogue 113 Adventurer 0 Explorer 0 Win Type - Total 1 Types 1/0/0/0/0/0/0/0/0/0 Lore% 27 Gallery% 48 Achievement% 39 Wizard Run 0 Options --------- Layout 2 ASCII 0 Keyboard 0 Movement Mouse Keybinds 0 Fullscreen 1 Font 24/Smallcaps Map View 50x44 Zoom Use 0% Tactical HUD 1 Map Filters NONE Filters NONE Steam 1 RUN: 8b6a56a3-cdae-4475-87db-2be1a41235f3